fUST/lending_fUST_20240816
["ID","MTS","AMOUNT","RATE_DAILY","PERIOD"]
[335049026,1723788642471,-500.0,0.00029979,2]
[335049027,1723788642481,-342.412437,0.00029979,2]
[335049028,1723788642491,-11542.41156765,0.0002998,2]
[335049029,1723788642528,-1644.13770192,0.0002998,2]
[335049126,1723788647139,-707.97026856,0.00029979,2]
[335049239,1723788649906,211.41216438,9.9e-05,2]
[335049240,1723788658015,175.98992927,9.9e-05,2]
[335049241,1723788676979,-1016.85791121,0.00015,2]
[335049242,1723788715908,-306.18447498,0.00014519,2]
[335049243,1723788777887,-175.98992927,0.00014245,2]
[335049244,1723788811471,-154.85786185,0.00014519,2]
[335049245,1723788848855,-163.43321624,0.00014519,2]
[335049251,1723789096561,-158.419508,0.00014247,2]
[335049253,1723789253061,-505.30551167,0.00015,2]
[335049254,1723789326989,-154.87140246,0.00015,2]
[335049255,1723789558178,-309.14881088,0.0002,2]
[335049257,1723789681962,-320.02539096,0.00014519,2]
[335049258,1723789686446,-155.1212643,0.00014519,2]
[335049259,1723789687085,-155.34425657,0.00014519,2]
[335049260,1723789691142,-187.27888222,0.00014519,2]
[335049261,1723789691796,-118.61592838,0.00014519,2]
[335049262,1723789691819,-36.17510373,0.00014519,2]
[335049263,1723789692851,-151.10377849,0.00014519,2]
[335049264,1723789692876,-154.79103211,0.00014519,2]
[335049265,1723789692901,-359.14520175,0.00014519,2]
[335049266,1723789701408,775.22099663,0.000125,2]
[335049267,1723789703872,-151.10377849,0.00014419,2]
[335049268,1723789708167,-305.8948106,0.00014419,2]
[335049269,1723789708846,-593.62253428,0.00014419,2]
[335049270,1723789709711,-296.8599257,0.00014519,2]
[335049271,1723789710365,-9.0348849,0.00014519,2]
[335049272,1723789710389,-148.2250743,0.00014519,2]
[335049273,1723789711004,-359.42614995,0.00014519,2]
[335049274,1723789712160,-344.01997542,0.00014519,2]
[335049275,1723789712184,-167.65782896,0.00014519,2]
[335049276,1723789712781,-129.20209674,0.00014519,2]
[335049277,1723789712806,-25.73285947,0.00014519,2]
[335049278,1723789713996,-131.52709973,0.00014519,2]
[335049279,1723789714184,-43.22962263,0.00014519,2]
[335049280,1723789715987,-310.2065959,0.00014519,2]
[335049281,1723789718784,-5.98993142,0.00014519,2]
[335049282,1723789718809,-484.57460943,0.00014519,2]
[335049283,1723789721475,-27.10319495,0.00014519,2]
[335049284,1723789721503,-153.63006152,0.00014519,2]
[335049285,1723789723903,-1.30489469,0.00014519,2]
[335049286,1723789723926,-174.75672236,0.00014519,2]
[335049287,1723789723950,-310.2065959,0.00014519,2]
[335049288,1723789723973,-217.17791242,0.00014519,2]
[335049289,1723789725762,-273.38662843,0.00014519,2]
[335049290,1723789725786,-70.63334699,0.00014519,2]
[335049291,1723789731701,-110.09990948,0.00014519,2]
[335049292,1723789731727,-269.19707837,0.00014519,2]
[335049293,1723789751319,-110.09990948,0.00014519,2]
[335049294,1723789751341,-154.97585054,0.00014519,2]
[335049295,1723789751362,-565.62708494,0.00014519,2]
[335049296,1723789751383,-404.32214551,0.00014519,2]
[335049297,1723789751404,-608.58295663,0.00014519,2]
[335049298,1723789751426,-196.63865106,0.00014519,2]
[335049299,1723789751452,-5242.02170044,0.00015151,2]
[335049300,1723789751475,-300.0,0.00017999,2]
[335049301,1723789751496,-3944.74876286,0.00018,2]
[335049302,1723789751519,-204.39677141,0.00018,2]
[335049303,1723789751540,-4774.04231451,0.00018447,2]
[335049304,1723789767511,-782.12449386,0.00015151,2]
[335049305,1723789767533,-97.26491457,0.00018447,2]
[335049326,1723789833029,-951.01955875,0.0002,2]
[335049327,1723789833039,-300.0,0.00020499,2]
[335049328,1723789833051,-500.0,0.00020499,2]
[335049329,1723789833061,-500.0,0.00020499,2]
[335049330,1723789833071,-500.0,0.00020499,2]
[335049331,1723789833082,-500.0,0.00020499,2]
[335049332,1723789833092,-500.0,0.00020499,2]
[335049333,1723789833104,-480.0,0.00020499,2]
[335049334,1723789833115,-500.0,0.00020499,2]
[335049335,1723789833125,-500.0,0.00020499,2]
[335049336,1723789833136,-6420.15171158,0.000205,2]
[335049337,1723789833181,-388.42045515,0.00020499,2]
[335049338,1723789833193,-111.57954485,0.00020499,2]
[335049339,1723789833203,-500.0,0.00020499,2]
[335049340,1723789833213,-26.89421634,0.00020499,2]
[335049408,1723789873786,144.35146451,9.9e-05,2]
[335049409,1723789873812,129.0218978,9.9e-05,2]
[335049410,1723789882512,273.37336231,9.9e-05,2]
[335049411,1723789890647,273.37336231,9.9e-05,2]
[335049412,1723789899456,223.74872246,9.9e-05,2]
[335049413,1723789899484,49.62463985,9.9e-05,2]
[335049414,1723789907443,273.37336231,9.9e-05,2]
[335049415,1723789916200,270.62453212,9.9e-05,2]
[335049416,1723789916251,2.74883019,9.9e-05,2]
[335049417,1723789925776,-166.01805035,0.00014519,2]
[335049418,1723789934871,-155.54473646,0.00014519,2]
[335049419,1723789943997,-162.963501,0.00014247,2]
[335049420,1723789951347,544.6199315,0.00012,2]
[335049421,1723789951753,-303.1660334,0.00014519,2]
[335049422,1723789962454,-219.55245325,0.00014519,2]
[335049423,1723789963964,-268.04289184,0.00014519,2]
[335049424,1723789963989,-89.73688497,0.00014519,2]
[335049425,1723789964491,241.22860316,9.9e-05,2]
[335049426,1723789965592,154.88520015,0.00012,2]
[335049427,1723789968014,-155.04615955,0.00014519,2]
[335049428,1723789968744,-58.38298888,0.00014519,2]
[335049429,1723789968769,-357.77977681,0.00014519,2]
[335049430,1723789968795,-5.95563711,0.00014519,2]
[335049431,1723789971270,-149.09052244,0.00014519,2]
[335049432,1723789971297,-422.1184028,0.00014519,2]
[335049433,1723789971322,-65.51747664,0.00014519,2]
[335049434,1723789972525,-213.42914843,0.00014519,2]
[335049435,1723789974348,-154.8413538,0.00014519,2]
[335049436,1723789975060,-202.93842301,0.00014519,2]
[335049437,1723789975083,-106.73870215,0.00014519,2]
[335049438,1723789977209,222.16433675,0.00012,2]
[335049439,1723789982793,-48.10265165,0.00014519,2]
[335049440,1723789982822,-309.67712516,0.00014519,2]
[335049441,1723790007785,-494.81071941,0.00014519,2]
[335049442,1723790039718,-483.95250902,0.00014519,2]
[335049443,1723790408323,8000.0,0.00014,2]
[335049444,1723790732130,-170.22680999,0.00017158,2]
[335049452,1723790964122,-160.984849,0.00019547,2]
[335049453,1723790964148,-87.3275363,0.0001962,2]
[335049454,1723790964893,162.963501,0.00014247,2]
[335049469,1723791033558,-323.4273346,0.00019228,2]
[335049470,1723791033570,-160.984849,0.00019649,2]
[335049471,1723791033582,-160.984849,0.00019751,2]
[335049472,1723791033598,-160.984849,0.00019853,2]
[335049473,1723791033610,-160.984849,0.00019954,2]
[335049474,1723791033621,-1260.16836963,0.0002,2]
[335049475,1723791033632,-160.984849,0.00020056,2]
[335049476,1723791033644,-160.984849,0.00020158,2]
[335049477,1723791033655,-160.984849,0.0002026,2]
[335049478,1723791033667,-782.7462142,0.00020291,2]
[335049479,1723791033678,-160.984849,0.00020362,2]
[335049480,1723791033689,-1952.00939116,0.00020446,2]
[335049481,1723791033701,-160.984849,0.00020464,2]
[335049482,1723791033713,-300.0,0.00020499,2]
[335049483,1723791033724,-500.0,0.00020499,2]
[335049484,1723791033736,-500.0,0.00020499,2]
[335049485,1723791033747,-500.0,0.00020499,2]
[335049486,1723791033758,-473.79520529,0.00020499,2]
[335049487,1723791033770,-27522.05186411,0.000205,2]
[335049488,1723791033781,-160.984849,0.00020566,2]
[335049489,1723791033794,-162.963501,0.00021065,2]
[335049490,1723791033805,-2850.0,0.00025,2]
[335049491,1723791033817,-1952.00939115,0.00025197,2]
[335049492,1723791033829,-162.963501,0.00027884,2]
[335049493,1723791033840,-1649.25187981,0.0002799,2]
[335049494,1723791033855,-465.00321447,0.00028066,2]
[335049495,1723791033866,-1000.0,0.00029774,2]
[335049496,1723791033878,-857.38100208,0.00029788,2]
[335049500,1723791038815,-142.61899792,0.00029788,2]
[335049501,1723791038828,-766.33906724,0.00029801,2]
[335049502,1723791038843,-362.70477251,0.00029801,2]
[335049503,1723791038859,-663.78725646,0.00029853,2]
[335049504,1723791038870,-663.78725646,0.0002987,2]
[335049505,1723791038881,-968.10394887,0.0002988,2]
[335049506,1723791038894,-179.21519531,0.00029959,2]
[335049507,1723791038906,-234.00565402,0.00029959,2]
[335049508,1723791038917,-500.0,0.00029959,2]
[335049509,1723791038931,-500.0,0.00029959,2]
[335049510,1723791038942,-500.0,0.00029959,2]
[335049511,1723791038953,-26.67220957,0.00029959,2]
[335049512,1723791038967,-614.20952588,0.00029959,2]
[335049513,1723791038978,-151.0,0.0002996,7]
[335049514,1723791038989,-2635.85667174,0.0002996,7]
[335049574,1723791042538,-150.12314626,0.0002996,7]
[335049575,1723791042548,-2309.20821843,0.0002996,7]
[335049576,1723791042560,-476.77159957,0.0002996,7]
[335049577,1723791042570,-151.0,0.0002996,7]
[335049578,1723791042579,-194.973728,0.0002996,7]
[335049579,1723791042589,-70.155987,0.0002996,7]
[335049583,1723791043922,-1938.31854211,0.00029947,2]
[335049585,1723791043934,-13.69084904,0.00029947,2]
[335049586,1723791043944,-80.844013,0.0002996,7]
[335049589,1723791043955,-151.0,0.0002996,7]
[335049592,1723791043965,-151.0,0.0002996,7]
[335049594,1723791043975,-151.0,0.0002996,7]
[335049596,1723791043986,-151.0,0.0002996,7]
[335049598,1723791043996,-151.0,0.0002996,7]
[335049599,1723791044006,-151.0,0.0002996,7]
[335049600,1723791044016,-153.419172,0.0002996,7]
[335049601,1723791044025,-1044.890631,0.0002996,7]
[335049602,1723791044035,-1044.890631,0.0002996,7]
[335049603,1723791044044,-151.0,0.0002996,7]
[335049604,1723791044053,-151.0,0.0002996,7]
[335049605,1723791044063,-261.222214,0.0002996,7]
[335049606,1723791044072,-261.222214,0.0002996,7]
[335049607,1723791044082,-151.0,0.0002996,7]
[335049608,1723791044091,-2535.135936,0.0002996,7]
[335049609,1723791044102,-2535.135936,0.0002996,7]
[335049610,1723791044112,-229.739376,0.0002996,7]
[335049611,1723791044122,-151.0,0.0002996,7]
[335049612,1723791044131,-151.0,0.0002996,7]
[335049613,1723791044140,-647.35666051,0.0002996,4]
[335049618,1723791057313,86.7201406,9.9e-05,2]
[335049619,1723791057353,186.65322171,9.9e-05,2]
[335049620,1723791064804,205.5300474,0.00027,120]
[335049631,1723791202494,246.66928391,0.00013971,2]
[335049632,1723791232437,354.79141035,0.00013971,2]
[335049633,1723791233330,422.1184028,0.00013971,2]
[335049634,1723791239293,155.00412937,0.00013971,2]
[335049635,1723791257394,155.36827262,0.00013971,2]
[335049636,1723791258009,723.09032524,0.00013971,2]
[335049638,1723791326842,209.3414764,0.00013971,2]
[335049639,1723791368007,-188.34866886,0.00014245,2]
[335049643,1723791420730,188.34866886,0.00013971,2]
[335049668,1723791956140,-251.59481065,0.000249,2]
[335049669,1723791956163,-150.0,0.00025,2]
[335049670,1723791956185,-103.38739625,0.00027,2]
[335049671,1723791968155,-163.137264,0.00014247,2]
[335049675,1723792007108,-163.137264,0.00021467,2]
[335049676,1723792007129,-86.24797096,0.00027,2]
[335049678,1723792027109,-237.21157059,0.00027,2]
[335049686,1723792198424,163.0885159,0.00025399,2]
[335049707,1723792232335,-833.32143183,0.00027,2]
[335049709,1723792232345,-163.137264,0.00028687,2]
[335049711,1723792232355,-143.59336702,0.00029697,2]
[335049713,1723792232367,-856.40663298,0.00029697,2]
[335049715,1723792232377,-300.0,0.00029709,2]
[335049717,1723792232387,-1000.0,0.00029716,2]
[335049719,1723792232398,-1000.0,0.00029733,2]
[335049721,1723792232407,-1000.0,0.00029769,2]
[335049723,1723792232417,-300.2999749,0.00029793,2]
[335049725,1723792232426,-300.0,0.00029804,2]
[335049726,1723792232436,-1000.0,0.00029805,2]
[335049727,1723792232448,-527.6350217,0.00029821,2]
[335049728,1723792232457,-521.5934984,0.00029829,2]
[335049730,1723792232470,-478.4065016,0.00029829,2]
[335049732,1723792232479,-398.2723539,0.00029851,2]
[335049734,1723792232488,-1220.00586953,0.00029851,2]
[335049735,1723792232498,-1000.0,0.00029852,2]
[335049736,1723792232507,-398.27235387,0.00029853,2]
[335049737,1723792232516,-398.27235387,0.00029856,2]
[335049738,1723792232525,-398.27235387,0.00029858,2]
[335049739,1723792232534,-398.27235387,0.0002986,2]
[335049740,1723792232543,-1000.0,0.00029943,2]
[335049741,1723792232552,-219.31057837,0.00029949,2]
[335049742,1723792232561,-23350.91528112,0.0002995,4]
[335049777,1723792238014,-500.0,0.00029949,2]
[335049778,1723792238023,-500.0,0.00029949,2]
[335049779,1723792238033,-48.07062253,0.00029949,2]
[335050076,1723792242991,-115.73333528,0.00029949,2]
[335050079,1723792243001,-498.61721482,0.00029949,2]
[335050081,1723792243010,-10270.84261449,0.0002995,4]
[335050368,1723792245933,420.8073917,0.00020333,14]
[335052063,1723792441525,-190.28906751,0.00014519,2]
[335052064,1723792482536,-154.79103211,0.00014519,2]
[335052068,1723792625347,-1615.32923421,0.00014519,2]
[335052069,1723792634636,-543.73594479,0.00014519,2]
[335052070,1723792650934,-156.98597021,0.00014519,2]
[335052071,1723792665201,-190.25739912,0.00014519,2]
[335052072,1723792667652,-205.78586558,0.00014519,2]
[335052073,1723792677097,-810.98237385,0.00014519,2]
[335052074,1723792677121,-689.01762615,0.00014519,2]
[335052075,1723792679343,-810.98237385,0.00014519,2]
[335052082,1723793026592,-199.08415869,0.00014519,2]
[335052083,1723793072875,-163.137264,0.00014247,2]
[335052091,1723793137221,-199.08415869,0.00017598,2]
[335052092,1723793137243,-199.08415869,0.00017598,2]
[335052093,1723793137264,-101.53068061,0.00020333,2]
[335052094,1723793145560,-199.08415869,0.00014247,2]
[335052099,1723793237484,-154.79103211,0.00014247,2]
[335052100,1723793243117,-435.54371712,0.00020333,2]
[335052103,1723793254116,-309.81275027,0.00020333,2]
[335052114,1723793302410,347.74315074,0.000125,2]
[335052121,1723793325333,2674.41440902,0.0001,2]
[335052122,1723793354124,-154.79103211,0.00017269,2]
[335052123,1723793354146,-413.28122163,0.00020333,2]
[335052124,1723793354169,-154.79103211,0.00020333,2]
[335052125,1723793406877,8.03493199,9.9e-05,2]
[335052126,1723793406901,230.49728653,9.9e-05,2]
[335052127,1723793413329,2.38023205,0.00012121,2]
[335052128,1723793413365,176.91003686,0.00012121,2]
[335052143,1723793432055,-163.137264,0.00023014,2]
[335052144,1723793432065,-250.0,0.00025828,2]
[335052145,1723793432075,-250.0,0.00025899,2]
[335052146,1723793432084,-114.33021731,0.0002597,2]
[335052147,1723793432095,-135.66978269,0.0002597,2]
[335052148,1723793432105,-250.0,0.00026041,2]
[335052149,1723793432116,-250.0,0.00026111,2]
[335052150,1723793432137,-250.0,0.00026182,2]
[335052151,1723793432174,-250.0,0.00026253,2]
[335052152,1723793432209,-250.0,0.00026324,2]
[335052153,1723793432243,-250.0,0.00026395,2]
[335052154,1723793432279,-250.0,0.00026466,2]
[335052155,1723793432308,-250.0,0.00026537,2]
[335052156,1723793432317,-250.0,0.00026607,2]
[335052157,1723793432327,-250.0,0.00026678,2]
[335052158,1723793432337,-250.0,0.00026749,2]
[335052159,1723793432346,-250.0,0.0002682,2]
[335052160,1723793432356,-250.0,0.00026891,2]
[335052161,1723793432365,-250.0,0.00026962,2]
[335052162,1723793432374,-250.0,0.00027033,2]
[335052163,1723793432384,-300.0,0.00027033,2]
[335052164,1723793432397,-250.0,0.00027103,2]
[335052165,1723793432418,-250.0,0.00027174,2]
[335052166,1723793432441,-9938.08021731,0.00028,2]
[335052255,1723793438412,-782.12449386,0.00024613,2]
[335052256,1723793438422,-1916.73116174,0.00028,2]
[335052257,1723793438431,-521.0,0.00028295,2]
[335052258,1723793438441,-6780.1443444,0.00029257,2]
[335052316,1723793446173,-3312.36177032,0.00029257,2]
[335052321,1723793453049,200.0,0.00020333,14]
[335052322,1723793461184,200.0,0.00020333,14]
[335052341,1723793594011,618.70064216,0.00013971,2]
[335052342,1723793602677,342.34193595,0.00013971,2]
[335052344,1723793612487,161.39448509,0.00013971,2]
[335052345,1723793613239,155.85710689,0.00013971,2]
[335052346,1723793619864,1670.92226544,0.00013971,2]
[335052347,1723793620582,154.84620557,0.00013971,2]
[335052348,1723793621320,3609.28567796,0.00013971,2]
[335052349,1723793628833,155.09609778,0.00013971,2]
[335052350,1723793632760,155.32256026,0.00013971,2]
[335052368,1723793640987,283.13416877,0.00013971,2]
[335052369,1723793641947,188.46982331,0.00013971,2]
[335052370,1723793642473,240.49279008,0.00013971,2]
[335052371,1723793643954,229.87239205,0.00013971,2]
[335052372,1723793644921,218.21171043,0.00013971,2]
[335052373,1723793649421,154.9136217,0.00013971,2]
[335052374,1723793651489,503.62799516,0.00013971,2]
[335052375,1723793652962,226.77809033,0.00013971,2]
[335052376,1723793664711,155.32504483,0.00013971,2]
[335052378,1723793701477,2111.51511942,0.00013971,2]
[335052379,1723793733533,154.79103211,0.00013971,2]
[335052382,1723793826950,154.99369496,0.00013971,2]
[335052387,1723794193371,-325.0,0.00014246,2]
[335052388,1723794249103,-1599.0,0.00014246,2]
[335052391,1723794337129,-342.48595769,0.00014246,2]
[335052417,1723794435542,-956.62540285,0.00014246,2]
[335052418,1723794436631,-2576.79679315,0.00014246,2]
[335052419,1723794521386,-162.800282,0.00014247,2]
[335052420,1723794521410,-341.54414086,0.00015,2]
[335052421,1723794523949,-162.800282,0.00015,2]
[335052422,1723794544449,-162.9635091,0.00014247,2]
[335052423,1723794554147,-504.34442286,0.0001515,2]
[335052424,1723794554333,-589.40586761,0.000153,2]
[335052425,1723794554357,-170.22680999,0.000167,2]
[335052426,1723794601894,223.92755926,0.00018182,2]
[335052427,1723794601917,167.7021913,0.00018182,2]
[335052453,1723794638471,-913.79145382,0.00020333,2]
[335052454,1723794638483,-203.68744285,0.00020333,2]
[335052455,1723794638493,-237.630121,0.00023576,2]
[335052456,1723794638503,-162.800282,0.00023688,2]
[335052457,1723794638512,-168.139252,0.00024532,2]
[335052458,1723794638522,-168.139252,0.00024959,2]
[335052459,1723794638533,-168.139252,0.00025385,2]
[335052460,1723794638543,-168.139252,0.00025811,2]
[335052461,1723794638552,-300.0,0.00027805,2]
[335052462,1723794638563,-1262.39646947,0.00027806,2]
[335052463,1723794638611,-37501.51789838,0.00027806,2]
[335052465,1723794638621,-264.82665487,0.00029257,2]
[335052467,1723794638632,-6258.95599676,0.00029257,2]
[335052468,1723794638641,-525.38611056,0.00029593,2]
[335052469,1723794638658,-1140.05127953,0.00029593,2]
[335052470,1723794638668,-1665.43739006,0.00029652,2]
[335052472,1723794638677,-1000.0,0.00029668,2]
[335052474,1723794638687,-1665.43739006,0.00029712,2]
[335052476,1723794638697,-1000.0,0.00029718,2]
[335052478,1723794638707,-1665.43739006,0.00029771,2]
[335052480,1723794638716,-242.8733,0.00029809,2]
[335052482,1723794638726,-1665.43739006,0.0002983,2]
[335052484,1723794638735,-31074.9867729,0.0002983,3]
[335052486,1723794638744,-2281.622342,0.0002983,7]
[335052488,1723794638754,-667.975795,0.0002983,7]
[335052490,1723794638763,-2281.622342,0.0002983,7]
[335052492,1723794638773,-667.975795,0.0002983,7]
[335052494,1723794638783,-151.0,0.0002983,7]
[335052496,1723794638793,-151.0,0.0002983,7]
[335052498,1723794638802,-151.0,0.0002983,2]
[335052500,1723794638812,-151.0,0.0002983,7]
[335052502,1723794638821,-151.0,0.0002983,2]
[335052504,1723794638831,-151.0,0.0002983,7]
[335052506,1723794638840,-500.0,0.00029839,2]
[335052507,1723794638850,-549.03205037,0.00029839,2]
[335052509,1723794638859,-151.0,0.0002984,7]
[335052512,1723794638868,-151.0,0.0002984,7]
[335052514,1723794638880,-231.912695,0.0002984,7]
[335052515,1723794638889,-346.545386,0.0002984,7]
[335052518,1723794638899,-346.545386,0.0002984,7]
[335052520,1723794638909,-158.559054,0.0002984,7]
[335052522,1723794638920,-158.559054,0.0002984,7]
[335052524,1723794638932,-152.568264,0.0002984,7]
[335052526,1723794638941,-151.0,0.0002984,7]
[335052528,1723794638952,-151.0,0.0002984,7]
[335052530,1723794638963,-268.631835,0.0002984,7]
[335052533,1723794638973,-2119.210831,0.0002984,7]
[335052535,1723794638983,-2119.210831,0.0002984,7]
[335052537,1723794638993,-662.989281,0.0002984,7]
[335052539,1723794639003,-662.989281,0.0002984,7]
[335052540,1723794639013,-151.0,0.0002984,7]
[335052542,1723794639023,-741.733799,0.0002984,7]
[335052543,1723794639032,-741.733799,0.0002984,7]
[335052544,1723794639042,-1791.892433,0.0002984,7]
[335052545,1723794639052,-1567.025212,0.0002984,7]
[335052546,1723794639062,-2719.643312,0.0002984,7]
[335052547,1723794639073,-1791.892433,0.0002984,7]
[335052548,1723794639083,-1567.025212,0.0002984,7]
[335052549,1723794639092,-2719.643312,0.0002984,7]
[335052550,1723794639102,-151.0,0.0002984,7]
[335052551,1723794639113,-151.0,0.0002984,7]
[335052552,1723794639126,-151.0,0.0002984,7]
[335052553,1723794639136,-151.0,0.0002984,7]
[335052554,1723794639145,-151.0,0.0002984,7]
[335052555,1723794639154,-151.0,0.0002984,7]
[335052556,1723794639166,-151.0,0.0002984,7]
[335052557,1723794639176,-151.0,0.0002984,7]
[335052558,1723794639185,-151.0,0.0002984,7]
[335052559,1723794639195,-2507.381836,0.0002984,7]
[335052560,1723794639206,-2507.381836,0.0002984,7]
[335052561,1723794639215,-2507.381836,0.0002984,7]
[335052562,1723794639225,-2507.381836,0.0002984,7]
[335052563,1723794639235,-2507.381836,0.0002984,7]
[335052564,1723794639245,-2507.381836,0.0002984,7]
[335052565,1723794639255,-1123.869998,0.0002984,7]
[335052566,1723794639264,-1123.869998,0.0002984,7]
[335052567,1723794639274,-1123.869998,0.0002984,7]
[335052568,1723794639284,-1123.869998,0.0002984,7]
[335052569,1723794639294,-1123.869998,0.0002984,7]
[335052570,1723794639305,-1123.869998,0.0002984,7]
[335052571,1723794639315,-241.752702,0.0002984,7]
[335052572,1723794639324,-959.95390077,0.0002984,2]
[335052573,1723794639334,-238.32956,0.0002984,7]
[335052574,1723794639343,-238.32956,0.0002984,7]
[335052575,1723794639352,-238.32956,0.0002984,7]
[335052576,1723794639362,-238.32956,0.0002984,7]
[335052577,1723794639371,-238.32956,0.0002984,7]
[335052578,1723794639381,-238.32956,0.0002984,7]
[335052579,1723794639391,-238.32956,0.0002984,7]
[335052580,1723794639401,-238.32956,0.0002984,7]
[335052581,1723794639411,-151.0,0.0002984,7]
[335052582,1723794639420,-940.401568,0.0002984,7]
[335052583,1723794639430,-940.401568,0.0002984,7]
[335052584,1723794639439,-940.401568,0.0002984,7]
[335052585,1723794639450,-940.401568,0.0002984,7]
[335052586,1723794639459,-940.401568,0.0002984,7]
[335052587,1723794639469,-940.401568,0.0002984,7]
[335052588,1723794639478,-940.401568,0.0002984,7]
[335052589,1723794639488,-940.401568,0.0002984,7]
[335052590,1723794639497,-235.099993,0.0002984,7]
[335052591,1723794639507,-235.099993,0.0002984,7]
[335052592,1723794639516,-151.0,0.0002984,7]
[335052593,1723794639525,-235.099993,0.0002984,7]
[335052594,1723794639535,-151.0,0.0002984,7]
[335052595,1723794639544,-235.099993,0.0002984,7]
[335052596,1723794639553,-152.99611,0.0002984,7]
[335052597,1723794639562,-235.099993,0.0002984,7]
[335052598,1723794639571,-235.099993,0.0002984,7]
[335052599,1723794639580,-235.099993,0.0002984,7]
[335052600,1723794639589,-235.099993,0.0002984,7]
[335052601,1723794639599,-2281.622342,0.0002984,7]
[335052602,1723794639609,-2281.622342,0.0002984,7]
[335052603,1723794639752,-2281.622342,0.0002984,7]
[335052604,1723794639762,-2281.622342,0.0002984,7]
[335052605,1723794639771,-2281.622342,0.0002984,7]
[335052606,1723794639781,-2281.622342,0.0002984,7]
[335052607,1723794639790,-667.975795,0.0002984,7]
[335052608,1723794639799,-667.975795,0.0002984,7]
[335052609,1723794639809,-667.975795,0.0002984,7]
[335052610,1723794639819,-2281.622342,0.0002984,7]
[335052611,1723794639828,-667.975795,0.0002984,7]
[335052612,1723794639838,-2281.622342,0.0002984,7]
[335052613,1723794639847,-667.975795,0.0002984,7]
[335052614,1723794639856,-2281.622342,0.0002984,7]
[335052615,1723794639865,-667.975795,0.0002984,7]
[335052616,1723794639874,-2281.622342,0.0002984,7]
[335052617,1723794639883,-2281.622342,0.0002984,7]
[335052618,1723794639892,-2281.622342,0.0002984,7]
[335052619,1723794639902,-667.975795,0.0002984,7]
[335052620,1723794639911,-667.975795,0.0002984,7]
[335052621,1723794639920,-667.975795,0.0002984,7]
[335052622,1723794639929,-667.975795,0.0002984,7]
[335052623,1723794639939,-667.975795,0.0002984,7]
[335052624,1723794639948,-667.975795,0.0002984,7]
[335052625,1723794639957,-151.0,0.0002984,7]
[335052626,1723794639967,-151.0,0.0002984,7]
[335052627,1723794639976,-151.0,0.0002984,7]
[335052628,1723794639985,-151.0,0.0002984,7]
[335052629,1723794639996,-151.0,0.0002984,7]
[335052630,1723794640005,-151.0,0.0002984,7]
[335052631,1723794640015,-151.0,0.0002984,7]
[335052632,1723794640024,-151.0,0.0002984,2]
[335052633,1723794640033,-151.0,0.0002984,2]
[335052634,1723794640043,-151.0,0.0002984,7]
[335052635,1723794640052,-151.0,0.0002984,2]
[335052636,1723794640062,-151.0,0.0002984,7]
[335052637,1723794640071,-151.0,0.0002984,2]
[335052638,1723794640080,-151.0,0.0002984,7]
[335052639,1723794640090,-151.0,0.0002984,7]
[335052640,1723794640100,-151.0,0.0002984,2]
[335052641,1723794640110,-151.0,0.0002984,7]
[335052642,1723794640122,-151.0,0.0002984,2]
[335052643,1723794640134,-151.0,0.0002984,7]
[335052644,1723794640144,-151.0,0.0002984,2]
[335052645,1723794640154,-260.082863,0.0002984,7]
[335052646,1723794640163,-151.0,0.0002984,2]
[335052647,1723794640173,-151.0,0.0002984,7]
[335052648,1723794640182,-151.0,0.0002984,2]
[335052649,1723794640192,-151.0,0.0002984,7]
[335052650,1723794640202,-151.0,0.0002984,2]
[335052651,1723794640213,-151.0,0.0002984,7]
[335052652,1723794640222,-247.22239,0.0002984,2]
[335052653,1723794640233,-151.0,0.0002984,7]